Cogmind - Beta 15 @@@ ROGUE MODE // 2025.07.18 @ 17:15:08 Player: beans Result: Destroyed by D-53 Grenadier with Mini Grenade Launcher Performance ------------- Evolutions (1) 500 Regions Visited (4) 800 Robots Destroyed (90) 450 Value Destroyed (1786) 1786 Prototype IDs (5) 100 Alien Tech Used (0) 0 Bonus (-128) -128 TOTAL SCORE: 3508 Bonus ------- High Alert Combat Kills 11 Friendly Fire -139 Cogmind --------- Core Integrity 0/400 Matter 150/300 Energy 100/100 System Corruption 0% Temperature Cool (0) Movement Treading (250) Ox1 Location -9/Mines Parts ------- > --- POWER (1) -------- (None) > --- PROPULSION (4) --- Armored Treads Armored Treads Armored Treads > --- UTILITY (2) ------ Huge Storage Unit Improved Targeting Computer > --- WEAPON (2) ------- Mini Grenade Launcher Mini Grenade Launcher > --- INVENTORY (25) --- Ion Engine Cooled Ion Engine Cooled Ion Engine Improved Flight Unit Medium Matter Pod (0) Medium Matter Pod (0) Medium Matter Pod (0) Signal Interpreter Armor Integrity Analyzer Hacking Suite Small Laser Small Laser Light Assault Rifle Heavy Assault Rifle Shotgun Shotgun EMP Blaster EMP Blaster Mini Grenade Launcher Mini Grenade Launcher Peak State ------------ > --- POWER ------------ Cooled Ion Engine > --- PROPULSION ------- Armored Treads Armored Treads Armored Treads Armored Treads > --- UTILITY ---------- Huge Storage Unit Improved Targeting Computer > --- WEAPON ----------- Improved Medium Laser Heavy Assault Rifle > --- INVENTORY -------- Ion Engine Cooled Ion Engine Cooled Ion Engine Improved Flight Unit Small Laser Small Laser Light Assault Rifle Shotgun Shotgun EMP Blaster EMP Blaster [Rating: 25] Favorites ----------- Power Cooled Ion Engine Engine Cooled Ion Engine Propulsion Armored Treads Treads Armored Treads Leg Aluminum Leg Flight Unit Improved Flight Unit Utility Huge Storage Unit Device High-powered Tractor Beam Storage Huge Storage Unit Processor Improved Targeting Computer Weapon Small Laser Energy Gun Small Laser Ballistic Gun Shotgun Ballistic Cannon Light Cannon Launcher Grenade Launcher Build | -11 -10 -10 -9 -9 ------- Run | Yrd Mat Min Mat Min Slots Evolved 2 | . . . 2 . Power . | . . . . . Propulsion 2 | . . . 2 . Utility . | . . . . . Weapon . | . . . . . Parts Attached 34 | 5 6 . 21 2 Power 4 | 1 2 . 1 . Engine 4 | 1 2 . 1 . Core . | . . . . . Reactor . | . . . . . Propulsion 10 | 2 . . 8 . Treads 6 | 2 . . 4 . Leg 2 | . . . 2 . Wheel . | . . . . . Hover . | . . . . . Flight 2 | . . . 2 . Utility 3 | . 1 . 2 . Device 1 | . . . 1 . Storage 1 | . 1 . . . Processor 1 | . . . 1 . Hackware . | . . . . . Protection . | . . . . . Artifact . | . . . . . Weapon 17 | 2 3 . 10 2 Energy Gun 6 | 2 2 . 2 . Energy Cannon . | . . . . . Ballistic Gun 5 | . . . 5 . Ballistic Cannon 1 | . . . 1 . Launcher 5 | . 1 . 2 2 Special Weapon . | . . . . . Impact Weapon . | . . . . . Slashing Weapon . | . . . . . Piercing Weapon . | . . . . . Special Melee Weapon . | . . . . . Unidentified Prototypes 5 | . 2 . 3 . Parts Lost 13 | . 1 . 10 2 Power 2 | . . . 1 1 Propulsion 3 | . . . 2 1 Utility 1 | . . . 1 . Weapon 7 | . 1 . 6 . Highest Loss Streak 4 | . 1 . 4 2 To Critical Strikes . | . . . . . Average Backups 6 | . 3 6 8 19 Power 1 | . . 2 2 3 Propulsion . | . . . . 1 Utility . | . . . . 5 Weapon 4 | . 3 4 4 10 Tool/Special . | . . . . . Unused Backups 7 | . . . 1 6 Power 2 | . . . . 2 Propulsion 1 | . . . 1 . Utility 2 | . . . . 2 Weapon 2 | . . . . 2 Tool/Special . | . . . . . Average Slot Usage (%) 86 | . 83 85 87 100 Engine 12 | . 13 14 10 11 Treads 31 | . 28 28 33 44 Leg 1 | . . . 2 . Storage 11 | . 12 14 11 11 Processor 4 | . . . 6 11 Energy Gun 11 | . 19 28 6 . Ballistic Gun 8 | . . . 14 4 Launcher 3 | . 8 . . 18 Peak Build Rating 25 | 5 12 12 25 25 Average Rating 15 | 3 7 12 19 24 On Entrance 10 | . 5 12 12 25 Naked Turns . | . . . . . Heaviest Build 96 | 7 94 94 96 94 Greatest Support 80 | 40 40 40 80 80 Greatest Overweight (x) 31 | . 2 2 31 1 Average Overweight (x) 1 | . 1 2 1 1 Largest Inventory Capacity 25 | 5 25 25 25 25 Average Capacity 24 | 5 23 25 25 25 Most Carried 20 | 2 6 6 19 20 Average Carried 6 | . 3 6 8 19 Final Capacity 25 | 5 25 25 25 25 Final Carried 20 | . 6 6 19 20 Class Distribution -------------------- 100% | Mutant Dominant Class ---------------- Mutant | -10/Materials Mutant | -10/Mines Mutant | -9/Materials Mutant | -9/Mines Resources | -11 -10 -10 -9 -9 ----------- Run | Yrd Mat Min Mat Min Matter Collected 1660 | 250 396 59 955 . Remotely 116 | . . . 116 . Salvage Created 2476 | 114 337 116 1809 100 Parts 170 | 8 26 16 118 2 Haulers Intercepted 5 | . 1 . 4 . Recyclers Shooed 3 | 1 1 . 1 . Parts Field Recycled . | . . . . . Retrieved Matter . | . . . . . Parts Self-Destructed . | . . . . . Prevented . | . . . . . Kills | -11 -10 -10 -9 -9 ------- Run | Yrd Mat Min Mat Min Combat Hostiles Destroyed 68 | . 17 6 29 16 Guns 32 | . 1 3 28 . Cannons 1 | . . . 1 . AOE 35 | . 16 3 . 16 Classes Destroyed 14 | 3 6 . 3 2 Worker 12 | 1 1 . 10 . Builder 6 | . 2 2 2 . Tunneler 2 | 1 . . 1 . Hauler 5 | . 1 . 4 . Recycler 4 | 1 1 . 2 . Operator 2 | . 1 . 1 . Watcher 6 | . 3 . 3 . Swarmer 17 | . 9 6 2 . Grunt 26 | . 8 . 18 . Brawler 1 | . . . 1 . Duelist 1 | . . . 1 . Sentry 7 | . . . 7 . Assembled 16 | . . . . 16 Guerrilla 1 | . . . . 1 Best Kill Streak 16 | 2 9 5 4 16 Combat Bots Only 16 | . 3 3 3 16 Max Kills in Single Turn 8 | 1 2 3 2 8 Gunslinging 1 | . . . 1 . Exploded 8 | . 2 2 . 8 Melee . | . . . . . Uniques/NPCs Destroyed . | . . . . . Combat | -11 -10 -10 -9 -9 -------- Run | Yrd Mat Min Mat Min Hostile Shots Fired 299 | . 32 11 247 9 Missed 87 | . 15 1 67 4 Hits 212 | . 17 10 180 5 Melee 3 | . . . 3 . Projectile 209 | . 17 10 177 5 AOE 3 | . . . . 3 Critical Strikes 2 | . . . 2 . Damage Taken 2814 | . 265 190 2212 147 Core 454 | . 34 10 357 53 Absorbed by Shields . | . . . . . Core Remaining (%) 91 | 100 . 82 . . Volleys Fired 212 | 4 40 6 156 6 Largest 2 | 2 2 2 2 2 Hottest 90 | 80 85 90 90 60 Shots Fired 373 | 8 41 12 300 12 Gun 309 | 8 3 12 286 . Cannon 10 | . . . 10 . Launcher 54 | . 38 . 4 12 Special . | . . . . . Kinetic 229 | . . . 229 . Thermal 55 | 8 1 . 46 . Explosive 50 | . 38 . . 12 Electromagnetic 39 | . 2 12 25 . Robot Hit Streak 17 | 2 5 3 17 1 Robot Miss Streak 6 | 1 2 2 6 2 Penetration Max . | . . . . . Secondary Targets 5 | . . . 5 . Max Gunslinging Chain 1 | . . . 1 . Shots Hit Robots 238 | 4 11 8 213 2 Core Hits 173 | 4 42 9 86 32 Critical Kills 1 | . . . 1 . Critical Parts Destroyed . | . . . . . Critical Strikes 1 | . . . 1 . Destroy 1 | . . . 1 . Melee Attacks . | . . . . . Impact . | . . . . . Slashing . | . . . . . Piercing . | . . . . . Sneak Attacks . | . . . . . Combat Hostiles . | . . . . . Follow-up Attacks . | . . . . . Damage Inflicted 6057 | 52 1499 300 3142 1064 Guns 3112 | 52 12 94 2954 . Cannons 103 | . . . 103 . Explosions 2842 | . 1487 206 85 1064 Melee . | . . . . . Ramming . | . . . . . Kinetic 2423 | . . . 2423 . Thermal 554 | 52 . 206 296 . Explosive 2551 | . 1487 . . 1064 Electromagnetic 529 | . 12 94 423 . Impact . | . . . . . Slashing . | . . . . . Piercing . | . . . . . Highest Corruption . | . . . . . Average Corruption . | . . . . . Corruption Purged . | . . . . . Corruption Blocked . | . . . . . Overload Shots . | . . . . . Overflow Damage 61 | . 27 . 13 21 Projectiles 13 | . . . 13 . Explosions 48 | . 27 . . 21 Melee . | . . . . . Knockbacks 1 | . . . 1 . Impact . | . . . . . Kinetic 1 | . . . 1 . Secondary . | . . . . . Self-Inflicted Damage 209 | . 100 108 1 . Shots 9 | . 5 3 1 . Rammed . | . . . . . Targets Rammed . | . . . . . Kicked . | . . . . . Crushed . | . . . . . Highest Temperature 126 | 18 24 120 126 . Average Temperature 21 | 5 5 55 17 . Received Heat Transfer 1074 | . 54 . 1020 . Siege Activations . | . . . . . Martial Activations . | . . . . . Shielding Activations . | . . . . . Robots Disrupted . | . . . . . Combat Hostiles . | . . . . . Robots Corrupted . | . . . . . Combat Hostiles . | . . . . . Parts Fried . | . . . . . Impact Corruptions . | . . . . . Robots Melted . | . . . . . Combat Hostiles . | . . . . . Parts Melted . | . . . . . Heat Transferred 1000 | 125 . 200 675 . Parts Sabotaged . | . . . . . Parts Stolen . | . . . . . Parts Stripped . | . . . . . Power Chain Reactions 3 | . . 3 . . Alert | -11 -10 -10 -9 -9 ------- Run | Yrd Mat Min Mat Min Maximum Alert Level 2 | . 1 . 2 . Low Security (%) 69 | 100 87 100 56 100 Level 1 26 | . 12 . 37 . Level 2 4 | . . . 6 . Level 3 . | . . . . . Level 4 . | . . . . . Level 5 . | . . . . . High Security . | . . . . . Max Security . | . . . . . Peak Influence 415 | 10 236 125 415 184 Initial 158 | . 3 35 40 158 Average 140 | 1 119 76 159 163 Influence Increases 1846 | 15 661 190 933 47 Destroy 0b10 Robot/C 1040 | . 340 120 580 . Destroy 0b10 Robot/NC 185 | 15 45 10 115 . Destroy Leader 262 | . 78 20 164 . Successful Hack 14 | . . . 14 . Disable Machine 135 | . 30 30 60 15 Destroy Structure 210 | . 168 10 . 32 Influence Decreases 1701 | 10 574 177 631 309 Entered New Map 373 | . 2 57 65 249 Time Decay 1233 | 10 562 120 501 40 Lost Part 95 | . 10 . 65 20 Squads Dispatched 7 | . 4 . 3 . Investigation 3 | . 2 . 1 . Extermination . | . . . . . Reinforcement 4 | . 2 . 2 . Assault . | . . . . . Garrison . | . . . . . Intercept . | . . . . . Searches Triggered . | . . . . . Construction Impeded . | . . . . . Haulers Reinforced . | . . . . . Active Scanning Responses . | . . . . . Cargo Convoy Interrupts . | . . . . . Stealth | -11 -10 -10 -9 -9 --------- Run | Yrd Mat Min Mat Min Distress Signals 1 | . . . 1 . Communications Jammed . | . . . . . Distress Signals . | . . . . . Times Spotted 96 | . 23 6 46 21 Peak Tracking Total 19 | . 3 3 4 19 Tactical Retreats 1 | . . . . 1 Traps | -11 -10 -10 -9 -9 ------- Run | Yrd Mat Min Mat Min Traps Triggered 3 | . 2 . 1 . Indirectly . | . . . . . Trap Hack Attempts . | . . . . . Triggered . | . . . . . Disarmed . | . . . . . Reprogrammed . | . . . . . Reused . | . . . . . Traps Extracted . | . . . . . Installed . | . . . . . Triggered . | . . . . . Machines | -11 -10 -10 -9 -9 ---------- Run | Yrd Mat Min Mat Min Machines Disabled 10 | . 3 2 4 1 Max in Single Turn 2 | . 1 2 1 1 Machines Repaired . | . . . . . Machines Dismantled . | . . . . . Machines Sabotaged . | . . . . . Overloaded Fab Kills . | . . . . . Hacking | -11 -10 -10 -9 -9 --------- Run | Yrd Mat Min Mat Min Machines Accessed 2 | . . . 2 . Terminals 1 | . . . 1 . Fabricators . | . . . . . Repair Stations . | . . . . . Recycling Units . | . . . . . Scanalyzers 1 | . . . 1 . Garrison Access . | . . . . . Total Hacks 5 | . . . 5 . Successful 3 | . . . 3 . Failed 2 | . . . 2 . Catastrophic . | . . . . . Database Lockouts . | . . . . . Manual . | . . . . . Terminals 2 | . . . 2 . Fabricators . | . . . . . Repair Stations . | . . . . . Recycling Units . | . . . . . Scanalyzers 3 | . . . 3 . Garrison Access . | . . . . . Terminal Hacks 1 | . . . 1 . Record 1 | . . . 1 . Fabricator Hacks . | . . . . . Repair Station Hacks . | . . . . . Recycling Unit Hacks . | . . . . . Scanalyzer 2 | . . . 2 . Insert Component 1 | . . . 1 . Analyze 1 | . . . 1 . Garrison Access Hacks . | . . . . . Unauthorized Hacks . | . . . . . Terminals . | . . . . . Fabricators . | . . . . . Repair Stations . | . . . . . Recycling Units . | . . . . . Scanalyzers . | . . . . . Garrison Access . | . . . . . Data Cores Recovered . | . . . . . Used . | . . . . . Hacking Detections 1 | . . . 1 . Full Trace Events . | . . . . . Feedback Events . | . . . . . Feedback Blocked . | . . . . . Robot Schematics Acquired . | . . . . . Robots Built . | . . . . . Authchips . | . . . . . Time . | . . . . . Total Robot Build Rating . | . . . . . Part Schematics Acquired 1 | . . . 1 . Parts Built . | . . . . . Authchips . | . . . . . Time . | . . . . . Total Part Build Rating . | . . . . . Parts Repaired . | . . . . . Time . | . . . . . Parts Recycled . | . . . . . Recycled Matter . | . . . . . Retrieved Matter . | . . . . . Retrieved Components . | . . . . . Parts Scanalyzed 1 | . . . 1 . Part Schematics Acquired 1 | . . . 1 . Parts Damaged . | . . . . . Bothacking | -11 -10 -10 -9 -9 ------------ Run | Yrd Mat Min Mat Min Used RIF Installer . | . . . . . Robots Hacked . | . . . . . Non-combat . | . . . . . Combat . | . . . . . Robot Hacks Applied . | . . . . . Relay Couplers Released . | . . . . . Fabnet Peak Effective % . | . . . . . Robots Rewired . | . . . . . Allies Hacked . | . . . . . Hacks Repelled . | . . . . . Allies | -11 -10 -10 -9 -9 -------- Run | Yrd Mat Min Mat Min Total Allies . | . . . . . Largest Group . | . . . . . Highest-Rated Group . | . . . . . Highest-Rated Ally . | . . . . . Total Orders . | . . . . . Ally Attacks . | . . . . . Total Damage . | . . . . . Kills . | . . . . . Allies Corrupted . | . . . . . Allies Melted . | . . . . . Intel | -11 -10 -10 -9 -9 ------- Run | Yrd Mat Min Mat Min Active Infowar (turns) . | . . . . . Robot Analysis Total . | . . . . . Derelict Logs Recovered 1 | . . 1 . . Drone Launches . | . . . . . Drone Recoveries . | . . . . . Exploration | -11 -10 -10 -9 -9 ------------- Run | Yrd Mat Min Mat Min Turns Passed 5443 | 110 1666 259 3310 98 Spaces Moved 1610 | 63 516 76 928 27 Core 31 | 11 . . 20 . Treads 1488 | 52 516 76 817 27 Legs 91 | . . . 91 . Wheels . | . . . . . Hover . | . . . . . Flight . | . . . . . Fastest Speed 50 | 50 160 320 250 250 Average Speed 291 | 140 301 320 294 250 Slowest Speed 1600 | 160 320 320 1600 250 Overloaded Moves . | . . . . . Propulsion Burnouts . | . . . . . Robots Hopped . | . . . . . Potential Cave-ins . | . . . . . Cave-ins Triggered . | . . . . . Exploration Rate (%) 36 | 4 80 19 69 10 Regions Visited 4 Branch Regions 2 Pre-discovered Areas . | . . . . . Known Exits Taken 1 | . . . 1 . Unknown Exits Taken 3 | 1 1 1 . . Scrap Searched . | . . . . . Spaces Dug . | . . . . . Terrain Destroyed 285 | . 200 10 . 75 Melee . | . . . . . Projectile . | . . . . . AOE 285 | . 200 10 . 75 Terrain Rammed . | . . . . . Walls Destroyed . | . . . . . Machines Disabled . | . . . . . Actions | -11 -10 -10 -9 -9 --------- Run | Yrd Mat Min Mat Min Total 2000 | 76 587 82 1210 45 Wait 83 | . 13 1 60 9 Move 1606 | 62 515 75 927 27 Hop . | . . . . . Pick Up 47 | 5 9 . 32 1 Fast Attach . | . . . . . Attach 27 | 5 4 . 18 . Detach 1 | . 1 . . . Swap 17 | . 4 . 11 2 Drop 7 | . 1 . 6 . Fire 212 | 4 40 6 156 6 Melee . | . . . . . Ram . | . . . . . Kick . | . . . . . Crush . | . . . . . Escape Stasis . | . . . . . Rewire . | . . . . . Trap . | . . . . . Miscellaneous . | . . . . . Route ------- -11/Scrapyard -10/Materials (discovered 4 exits: *Mat x2 / [*Min x2]) -10/Mines -9/Materials (discovered 3 exits: [*Mat x2] / *Min) -9/Mines History --------- Turn | Location | Event 6 | -11/Scrapyard | Discovered new exit (range 15) 111 | -11/Scrapyard | Entered Materials 167 | -10/Materials | Discovered new exit (range 13) 255 | -10/Materials | Discovered new exit (range 15) 316 | -10/Materials | Build established: Mutant 421 | -10/Materials | Discovered new exit (range 16) 504 | -10/Materials | Discovered new exit (range 16) 1777 | -10/Materials | Entered Mines 1893 | -10/Mines | Discovered new exit (range 9) 1944 | -10/Mines | Learned 8 Materials zone layouts 2036 | -10/Mines | Entered Materials 2036 | -9/Materials | Evolved 2 slots: Propulsion x2 2037 | -9/Materials | Identified exit to Mines 2173 | -9/Materials | Lost 4 parts (2n2w) 2367 | -9/Materials | Lost 3 parts (1p2w) 3158 | -9/Materials | Core integrity fell below 50% 3785 | -9/Materials | Discovered new exit (range 15) 4327 | -9/Materials | Core integrity fell below 20% 4384 | -9/Materials | Discovered new exit (range 10) 5346 | -9/Materials | Entered Mines 5347 | -9/Mines | Assembled infested the area 5352 | -9/Mines | Assisted by a Guerilla fighting off Assembled 5403 | -9/Mines | Destroyed 16 combat bots 5444 | -9/Mines | Destroyed by D-53 Grenadier with Mini Grenade Launcher Last Messages --------------- [Achievement: Exterminator] as-53335 destroyed. The unstable cave ceiling collapses. K-01 Serf collects debris. The unstable cave ceiling collapses. K-01 Serf collects debris. The unstable cave ceiling collapses. K-01 Serf collects debris. Acquired Armor Integrity Analyzer. K-01 Serf collects debris. The unstable cave ceiling collapses. K-01 Serf collects debris. The unstable cave ceiling collapses. K-01 Serf collects debris. The unstable cave ceiling collapses. K-01 Serf collects debris. The unstable cave ceiling collapses. Arm. Treads destroyed. Cld. Ion Engine destroyed. The unstable cave ceiling collapses. Map ----- +----------------------------------------------------+ | | | | | | | | | | | | | | | | | | | | | ???????????????????## ###??????? | | ????????????????#### ##?????? | | ????????????????# #?????? | | ????????######### ## # ###????? | | ????????# # # #????? | | ????????# """ ##????? | | ????????# """ = ## < #????? | | ????????# """ # ## #????? | | ????????# ## # #????? | | ????????# "" "" ##????? | | ????????# """ """ ##????? | | ????????# """ """ ## # ##???? | | ????????# #### #???? | | ????????#??""" """ #?# #???? | | ???????????""" """ ### #???? | | ????????????"" """ ## @ #???? | | ????????????? ?? ### #???? | | ?????????????##??####?# #???? | | ??????????????????????# #???? | | ??????????????????????### ###???? | | ???????????????????????? ?????? | | ???????????????????????? ?????? | | ???????????????????????? ????? | | ???????????????????????? ????? | | ???????????????????????? dd ????? | | ???????????????????????? ???? | | ???????????????????????? #% ???? | | ???????????????????????? ???? | | ???????????????????????? ##??? | | ???????????????????????? ##???? | | ???????????????????????? ?????? | | ?????????????????????????????????? | | ?????????????????????????????????? | | ?????????????????????????????????? | | ?????????????????????????????????? | | ?????????????????????????????????? | | ?????????????????????????????????? | | ?????????????????????????????????? | | ?????????????????????????????????? | | ?????????????????????????????????? | +----------------------------------------------------+ Best States ------------- Heat Dissipation 28 Energy Generation 14 Energy Capacity 280 Matter Stores 300 Matter Capacity 300 Sight Range 16 Terrain Scan Density 10 Evasion (%) 40 Targeting Accuracy 6 Recoil Reduction 4 Item Schematics ----------------- Cld. Ion Engine | -9/Materials | Scanalyzed Robot Schematics ------------------ None Fabricated ------------ Nothing Repaired ---------- Nothing Alien Tech Used ----------------- None Achievements -------------- Exterminator Challenges ------------ None Game ------ Seed EncryptedBoreBlaster Manual? 0 Play Time 00:28:01 Cumulative 60.6 hours Start 2025.07.18 @ 16:04:27 End 2025.07.18 @ 17:15:08 Sessions 1 Manual Loads 0 Difficulty Rogue Special Mode None Game No. 259 Rogue 259 Adventurer 0 Explorer 0 Win Type - Total 0 Types 0/0/0/0/0/0/0/0/0/0 Lore% 39 Gallery% 30 Achievement% 25 Wizard Run 0 Options --------- Layout 2 ASCII 0 Keyboard 0 Movement Mouse Keybinds 0 Fullscreen 1 Font 24/Terminus Map View 50x44 Zoom Use 0% Tactical HUD 0 Map Filters NONE Filters NONE Steam 1 RUN: 10eb9c5d-2a2e-4786-abb9-67e78d007232